[Event "*** Titled Tuesday Blitz"]
[Site "Chess.com"]
[Date "2020.04.28"]
[Round "6"]
[White "MichailovM"]
[Black "GMNeiksans"]
[Result "1-0"]
[WhiteElo "2387"]
[BlackElo "2777"]
[TimeControl "180+1"]
[EndTime "11:08:41 PDT"]
[Termination "MichailovM won on time"]

1. e4 {[%clk 0:03:00]} 1... g6 {[%clk 0:02:56]} 2. d4 {[%clk 0:02:59.8]} 2...
Bg7 {[%clk 0:02:55.2]} 3. Nc3 {[%clk 0:03:00.4]} 3... d6 {[%clk 0:02:53.8]} 4.
h3 {[%clk 0:03:00.3]} 4... a6 {[%clk 0:02:50]} 5. a4 {[%clk 0:03:00.4]} 5... Nf6
{[%clk 0:02:44.6]} 6. Nf3 {[%clk 0:03:00.2]} 6... O-O {[%clk 0:02:43.6]} 7. Be2
{[%clk 0:02:58.6]} 7... b6 {[%clk 0:02:35.6]} 8. O-O {[%clk 0:02:55.3]} 8... Bb7
{[%clk 0:02:35.5]} 9. d5 {[%clk 0:02:46.5]} 9... c6 {[%clk 0:02:16.7]} 10. Be3
{[%clk 0:02:35.9]} 10... cxd5 {[%clk 0:02:11.4]} 11. exd5 {[%clk 0:02:35.9]}
11... Nbd7 {[%clk 0:02:11.3]} 12. Bd4 {[%clk 0:02:31.6]} 12... Rc8 {[%clk
0:02:07]} 13. Re1 {[%clk 0:02:31.7]} 13... Rc7 {[%clk 0:02:01]} 14. Bf1 {[%clk
0:02:16.4]} 14... Re8 {[%clk 0:02:00.5]} 15. Qd2 {[%clk 0:01:40]} 15... Qa8
{[%clk 0:01:59.9]} 16. Rad1 {[%clk 0:01:38.3]} 16... Bxd5 {[%clk 0:01:15.5]} 17.
Nxd5 {[%clk 0:01:30.9]} 17... Qxd5 {[%clk 0:01:15]} 18. Bxa6 {[%clk 0:01:30.4]}
18... Nc5 {[%clk 0:00:59.6]} 19. Bb5 {[%clk 0:01:29.7]} 19... Rec8 {[%clk
0:00:56.7]} 20. Qe3 {[%clk 0:01:03]} 20... Qb7 {[%clk 0:00:46.7]} 21. Re2 {[%clk
0:00:53]} 21... Rb8 {[%clk 0:00:44.4]} 22. b4 {[%clk 0:00:43.9]} 22... Ne6
{[%clk 0:00:44.4]} 23. Ba1 {[%clk 0:00:42.7]} 23... Nd5 {[%clk 0:00:43]} 24. Qb3
{[%clk 0:00:34.8]} 24... Nc3 {[%clk 0:00:37.6]} 25. Rxe6 {[%clk 0:00:28.5]}
25... Nxd1 {[%clk 0:00:33.1]} 26. Ng5 {[%clk 0:00:23.7]} 26... Rf8 {[%clk
0:00:25.8]} 27. Bxg7 {[%clk 0:00:21.1]} 27... Kxg7 {[%clk 0:00:25.8]} 28. Re1
{[%clk 0:00:18.7]} 28... Nc3 {[%clk 0:00:24.4]} 29. Bc4 {[%clk 0:00:18.1]} 29...
d5 {[%clk 0:00:23.3]} 30. Qxc3+ {[%clk 0:00:18.1]} 30... Kg8 {[%clk 0:00:20.4]}
31. Bxd5 {[%clk 0:00:18.5]} 31... Qxd5 {[%clk 0:00:14.1]} 32. Qxc7 {[%clk
0:00:18.4]} 32... Qxg5 {[%clk 0:00:14.2]} 33. Qxb6 {[%clk 0:00:17.7]} 33... Rc8
{[%clk 0:00:12]} 34. Re2 {[%clk 0:00:16.1]} 34... e6 {[%clk 0:00:08.4]} 35. Qe3
{[%clk 0:00:15.4]} 35... Qf6 {[%clk 0:00:06]} 36. Rd2 {[%clk 0:00:13.6]} 36...
Qa1+ {[%clk 0:00:05.5]} 37. Kh2 {[%clk 0:00:13.7]} 37... Qxa4 {[%clk 0:00:05.7]}
38. Qd4 {[%clk 0:00:12]} 38... Qc6 {[%clk 0:00:05.8]} 39. h4 {[%clk 0:00:09.3]}
39... Rb8 {[%clk 0:00:05.9]} 40. h5 {[%clk 0:00:09.1]} 40... Qb5 {[%clk
0:00:05.3]} 41. hxg6 {[%clk 0:00:08.6]} 41... hxg6 {[%clk 0:00:05.6]} 42. c3
{[%clk 0:00:08.9]} 42... Qb7 {[%clk 0:00:05.5]} 43. f3 {[%clk 0:00:08.8]} 43...
Rc8 {[%clk 0:00:05.3]} 44. Kg3 {[%clk 0:00:08.5]} 44... Qc7+ {[%clk 0:00:05.8]}
45. Kf2 {[%clk 0:00:08.7]} 45... Qxc3 {[%clk 0:00:06.1]} 46. Qxc3 {[%clk
0:00:09.6]} 46... Rxc3 {[%clk 0:00:06.8]} 47. Rb2 {[%clk 0:00:10.5]} 47... Rc6
{[%clk 0:00:07]} 48. b5 {[%clk 0:00:11.4]} 48... Rb6 {[%clk 0:00:07.5]} 49. Ke3
{[%clk 0:00:12.3]} 49... Kf8 {[%clk 0:00:08]} 50. Kd4 {[%clk 0:00:13.2]} 50...
Ke7 {[%clk 0:00:08.6]} 51. Kc5 {[%clk 0:00:14.1]} 51... Rb8 {[%clk 0:00:08.7]}
52. b6 {[%clk 0:00:15]} 52... Kd7 {[%clk 0:00:07.2]} 53. Rd2+ {[%clk 0:00:15]}
53... Ke7 {[%clk 0:00:04.9]} 54. Kc6 {[%clk 0:00:15.5]} 54... Rc8+ {[%clk
0:00:05.4]} 55. Kb7 {[%clk 0:00:15.6]} 55... Rc3 {[%clk 0:00:05.4]} 56. Kb8
{[%clk 0:00:12.8]} 56... e5 {[%clk 0:00:05.1]} 57. b7 {[%clk 0:00:13.3]} 57...
Ra3 {[%clk 0:00:04.8]} 58. Rd5 {[%clk 0:00:13.5]} 58... Ke6 {[%clk 0:00:04.4]}
59. Rd8 {[%clk 0:00:13.4]} 59... Ke7 {[%clk 0:00:04.3]} 60. Rd5 {[%clk
0:00:13.1]} 60... Ke6 {[%clk 0:00:04.4]} 61. Rb5 {[%clk 0:00:11.1]} 61... Kd7
{[%clk 0:00:01.9]} 62. Rxe5 {[%clk 0:00:10.8]} 62... Ra2 {[%clk 0:00:02.3]} 63.
g4 {[%clk 0:00:10.8]} 63... f6 {[%clk 0:00:02.1]} 64. Rd5+ {[%clk 0:00:10.6]}
64... Ke6 {[%clk 0:00:01.2]} 65. Rd4 {[%clk 0:00:10.7]} 1-0

[Event "*** Titled Tuesday Blitz"]
[Site "Chess.com"]
[Date "2020.04.28"]
[Round "6"]
[White "Larisa004"]
[Black "tufferguy"]
[Result "1-0"]
[WhiteElo "2124"]
[BlackElo "2369"]
[TimeControl "180+1"]
[EndTime "11:08:41 PDT"]
[Termination "Larisa004 won on time"]

1. e4 {[%clk 0:03:00.9]} 1... e5 {[%clk 0:02:56.2]} 2. Nf3 {[%clk 0:03:00.2]}
2... Nc6 {[%clk 0:02:55.8]} 3. d4 {[%clk 0:03:00.1]} 3... exd4 {[%clk
0:02:55.3]} 4. Nxd4 {[%clk 0:02:59.6]} 4... Bb4+ {[%clk 0:02:54.7]} 5. c3 {[%clk
0:02:58.9]} 5... Bc5 {[%clk 0:02:55]} 6. Nxc6 {[%clk 0:02:58.5]} 6... bxc6
{[%clk 0:02:53.9]} 7. Qf3 {[%clk 0:02:57.9]} 7... Qf6 {[%clk 0:02:51]} 8. Nd2
{[%clk 0:02:53.7]} 8... d6 {[%clk 0:02:50.8]} 9. Nb3 {[%clk 0:02:52.9]} 9... Bb6
{[%clk 0:02:49.4]} 10. Be3 {[%clk 0:02:48.1]} 10... h5 {[%clk 0:02:41.8]} 11.
Bd4 {[%clk 0:02:35.7]} 11... Qg6 {[%clk 0:02:33.8]} 12. h3 {[%clk 0:02:25.2]}
12... Bb7 {[%clk 0:01:54.8]} 13. Qf5 {[%clk 0:01:19.3]} 13... Qxf5 {[%clk
0:01:19.9]} 14. exf5 {[%clk 0:01:20.2]} 14... Nf6 {[%clk 0:01:17]} 15. O-O-O
{[%clk 0:01:16]} 15... O-O-O {[%clk 0:01:07]} 16. f3 {[%clk 0:01:13.4]} 16...
Rde8 {[%clk 0:00:57.5]} 17. Bd3 {[%clk 0:01:08]} 17... c5 {[%clk 0:00:50.9]} 18.
Bxf6 {[%clk 0:01:05.4]} 18... gxf6 {[%clk 0:00:50.6]} 19. Rhe1 {[%clk
0:01:01.8]} 19... d5 {[%clk 0:00:45.9]} 20. c4 {[%clk 0:00:39.5]} 20... Rxe1
{[%clk 0:00:19.3]} 21. Rxe1 {[%clk 0:00:38.7]} 21... Rg8 {[%clk 0:00:17.2]} 22.
g4 {[%clk 0:00:29.9]} 22... dxc4 {[%clk 0:00:16.4]} 23. Bxc4 {[%clk 0:00:29.5]}
23... Bxf3 {[%clk 0:00:16.6]} 24. Bxf7 {[%clk 0:00:28.2]} 24... Rd8 {[%clk
0:00:14.5]} 25. Be6+ {[%clk 0:00:27.8]} 25... Kb7 {[%clk 0:00:13.8]} 26. Nd2
{[%clk 0:00:22.3]} 26... hxg4 {[%clk 0:00:12.8]} 27. Nxf3 {[%clk 0:00:16.1]}
27... gxf3 {[%clk 0:00:13.7]} 28. Rf1 {[%clk 0:00:15.2]} 28... Rd3 {[%clk
0:00:13.5]} 29. Rxf3 {[%clk 0:00:12.9]} 29... Rxf3 {[%clk 0:00:14]} 30. Bd5+
{[%clk 0:00:12.6]} 30... c6 {[%clk 0:00:13.9]} 31. Bxf3 {[%clk 0:00:12.6]} 31...
Kc7 {[%clk 0:00:12.6]} 32. Bg4 {[%clk 0:00:12.3]} 32... c4 {[%clk 0:00:11.3]}
33. Kc2 {[%clk 0:00:11.7]} 33... Be3 {[%clk 0:00:11.1]} 34. Kc3 {[%clk
0:00:11.3]} 34... Bc1 {[%clk 0:00:10.2]} 35. Kxc4 {[%clk 0:00:10.9]} 35... Bxb2
{[%clk 0:00:10.1]} 36. a4 {[%clk 0:00:10.5]} 36... Kb6 {[%clk 0:00:09.5]} 37. h4
{[%clk 0:00:07.4]} 37... Bc1 {[%clk 0:00:09.6]} 38. h5 {[%clk 0:00:07.1]} 38...
Be3 {[%clk 0:00:08]} 39. Bf3 {[%clk 0:00:05.8]} 39... c5 {[%clk 0:00:04.2]} 40.
Bd5 {[%clk 0:00:05.5]} 40... Ka5 {[%clk 0:00:03.5]} 41. Bc6 {[%clk 0:00:05.6]}
41... Bh6 {[%clk 0:00:03.8]} 42. Bb5 {[%clk 0:00:05.4]} 42... Kb6 {[%clk
0:00:03.5]} 43. Kd5 {[%clk 0:00:04.9]} 43... a5 {[%clk 0:00:04.4]} 44. Ke6
{[%clk 0:00:03.3]} 44... Bg5 {[%clk 0:00:04.3]} 45. Kf7 {[%clk 0:00:02.1]} 45...
c4 {[%clk 0:00:05.2]} 46. Kg6 {[%clk 0:00:02.5]} 46... c3 {[%clk 0:00:05.6]} 47.
Bd3 {[%clk 0:00:02.5]} 47... Kc5 {[%clk 0:00:05.4]} 48. Bc2 {[%clk 0:00:02.7]}
48... Kd4 {[%clk 0:00:06.3]} 49. h6 {[%clk 0:00:02.4]} 49... Bxh6 {[%clk
0:00:06.7]} 50. Kxh6 {[%clk 0:00:02.4]} 50... Ke3 {[%clk 0:00:07.6]} 51. Bb3
{[%clk 0:00:02.4]} 51... Kd2 {[%clk 0:00:08.5]} 52. Kg6 {[%clk 0:00:02.7]} 52...
c2 {[%clk 0:00:08.7]} 53. Bxc2 {[%clk 0:00:03.2]} 53... Kxc2 {[%clk 0:00:09.6]}
54. Kxf6 {[%clk 0:00:03.5]} 54... Kb3 {[%clk 0:00:10.5]} 55. Ke6 {[%clk
0:00:03.9]} 55... Kxa4 {[%clk 0:00:11.4]} 56. f6 {[%clk 0:00:04.3]} 56... Kb3
{[%clk 0:00:12.3]} 57. f7 {[%clk 0:00:04.8]} 57... a4 {[%clk 0:00:13.2]} 58.
f8=Q {[%clk 0:00:04.7]} 58... a3 {[%clk 0:00:12.9]} 59. Qb8+ {[%clk 0:00:04.8]}
59... Kc2 {[%clk 0:00:12.9]} 60. Qe5 {[%clk 0:00:04.2]} 60... Kb1 {[%clk
0:00:12.5]} 61. Qe1+ {[%clk 0:00:02.5]} 61... Kb2 {[%clk 0:00:12.3]} 62. Qe2+
{[%clk 0:00:02.7]} 62... Kb1 {[%clk 0:00:12.1]} 63. Qb5+ {[%clk 0:00:03.1]}
63... Kc2 {[%clk 0:00:11.5]} 64. Qa4+ {[%clk 0:00:02.9]} 64... Kb2 {[%clk
0:00:11.5]} 65. Qb4+ {[%clk 0:00:03.1]} 65... Ka2 {[%clk 0:00:10.7]} 66. Kd5
{[%clk 0:00:02.6]} 66... Ka1 {[%clk 0:00:10.8]} 67. Qxa3+ {[%clk 0:00:02.6]}
67... Kb1 {[%clk 0:00:11.1]} 68. Qh3 {[%clk 0:00:02.9]} 68... Ka1 {[%clk
0:00:11.1]} 69. Kc4 {[%clk 0:00:03.8]} 69... Kb1 {[%clk 0:00:11.5]} 70. Kb3
{[%clk 0:00:03.9]} 70... Kc1 {[%clk 0:00:12.4]} 71. Qh1+ {[%clk 0:00:04]} 71...
Kd2 {[%clk 0:00:12.5]} 72. Qf3 {[%clk 0:00:04.6]} 72... Ke1 {[%clk 0:00:11.3]}
73. Qg2 {[%clk 0:00:04.8]} 73... Kd1 {[%clk 0:00:10.7]} 74. Kc3 {[%clk
0:00:04.6]} 74... Ke1 {[%clk 0:00:10.1]} 75. Kd3 {[%clk 0:00:05.1]} 1-0

[Event "*** Titled Tuesday Blitz"]
[Site "Chess.com"]
[Date "2020.04.28"]
[Round "6"]
[White "pheonixking2000"]
[Black "kuli4ik"]
[Result "1/2-1/2"]
[WhiteElo "2818"]
[BlackElo "2718"]
[TimeControl "180+1"]
[EndTime "11:08:44 PDT"]
[Termination "Game drawn by repetition"]

1. c4 {[%clk 0:03:00.9]} 1... e5 {[%clk 0:02:59.9]} 2. g3 {[%clk 0:03:00]} 2...
Nc6 {[%clk 0:02:59.5]} 3. Bg2 {[%clk 0:03:00.1]} 3... Bc5 {[%clk 0:02:59.6]} 4.
Nc3 {[%clk 0:03:00.1]} 4... a6 {[%clk 0:02:59.9]} 5. Nf3 {[%clk 0:02:59.9]} 5...
d6 {[%clk 0:02:59.8]} 6. O-O {[%clk 0:03:00.2]} 6... Ba7 {[%clk 0:03:00.7]} 7.
e3 {[%clk 0:02:55]} 7... Nf6 {[%clk 0:03:00.8]} 8. h3 {[%clk 0:02:50.4]} 8...
O-O {[%clk 0:03:00.9]} 9. d4 {[%clk 0:02:50]} 9... h6 {[%clk 0:02:59.6]} 10. b3
{[%clk 0:02:47.4]} 10... Bf5 {[%clk 0:02:48.1]} 11. Bb2 {[%clk 0:02:47.1]} 11...
exd4 {[%clk 0:02:46.9]} 12. Nxd4 {[%clk 0:02:46.1]} 12... Nxd4 {[%clk
0:02:44.9]} 13. exd4 {[%clk 0:02:47]} 13... c6 {[%clk 0:02:42.1]} 14. d5 {[%clk
0:02:46.9]} 14... Qd7 {[%clk 0:02:34.9]} 15. Kh2 {[%clk 0:02:46.3]} 15... Rfe8
{[%clk 0:02:16.2]} 16. Qf3 {[%clk 0:02:37.2]} 16... c5 {[%clk 0:02:03.7]} 17.
Rae1 {[%clk 0:02:18.3]} 17... Rxe1 {[%clk 0:02:01.3]} 18. Rxe1 {[%clk
0:02:18.4]} 18... Re8 {[%clk 0:02:01.8]} 19. Rxe8+ {[%clk 0:02:18.1]} 19... Nxe8
{[%clk 0:02:02.7]} 20. Ne4 {[%clk 0:02:17.7]} 20... Bb6 {[%clk 0:01:50.1]} 21.
g4 {[%clk 0:02:14.2]} 21... Bg6 {[%clk 0:01:25.1]} 22. Qc3 {[%clk 0:02:03.4]}
22... Bd8 {[%clk 0:01:09.9]} 23. Qd2 {[%clk 0:01:50.5]} 23... Bxe4 {[%clk
0:01:06.3]} 24. Bxe4 {[%clk 0:01:50.6]} 24... Bf6 {[%clk 0:01:06.9]} 25. Bc1
{[%clk 0:01:51.2]} 25... Be5+ {[%clk 0:00:57.8]} 26. f4 {[%clk 0:01:49.4]} 26...
Bd4 {[%clk 0:00:58.3]} 27. Qe2 {[%clk 0:01:48.2]} 27... g6 {[%clk 0:00:53.7]}
28. h4 {[%clk 0:01:28.6]} 28... Qe7 {[%clk 0:00:21.8]} 29. g5 {[%clk 0:00:52.6]}
29... hxg5 {[%clk 0:00:20.3]} 30. hxg5 {[%clk 0:00:53.5]} 30... Ng7 {[%clk
0:00:20.2]} 31. Bf3 {[%clk 0:00:48.3]} 31... Qxe2+ {[%clk 0:00:18.1]} 32. Bxe2
{[%clk 0:00:47.8]} 32... f5 {[%clk 0:00:18.3]} 33. gxf6 {[%clk 0:00:42.2]} 33...
Bxf6 {[%clk 0:00:17.8]} 34. Kg2 {[%clk 0:00:41.1]} 34... Kf7 {[%clk 0:00:17.6]}
35. Bg4 {[%clk 0:00:41.2]} 35... Nf5 {[%clk 0:00:17.7]} 36. Kf3 {[%clk
0:00:41.9]} 36... Bc3 {[%clk 0:00:13.5]} 37. Ke4 {[%clk 0:00:39.8]} 37... Kf6
{[%clk 0:00:12.6]} 38. Kf3 {[%clk 0:00:23.2]} 38... Nd4+ {[%clk 0:00:12]} 39.
Ke3 {[%clk 0:00:20.6]} 39... Nf5+ {[%clk 0:00:12.9]} 40. Kd3 {[%clk 0:00:21.2]}
40... Bd4 {[%clk 0:00:13.2]} 41. Bd2 {[%clk 0:00:20.6]} 41... b6 {[%clk
0:00:12.8]} 42. a3 {[%clk 0:00:18.9]} 42... Bb2 {[%clk 0:00:12.6]} 43. a4 {[%clk
0:00:17.7]} 43... a5 {[%clk 0:00:12.9]} 44. Bxf5 {[%clk 0:00:10.8]} 44... Kxf5
{[%clk 0:00:12]} 45. Ke3 {[%clk 0:00:10.9]} 45... Bf6 {[%clk 0:00:11.5]} 46. Kf3
{[%clk 0:00:10.7]} 46... Bh4 {[%clk 0:00:11.6]} 47. Be3 {[%clk 0:00:10.5]} 47...
Bf6 {[%clk 0:00:11.5]} 48. Bf2 {[%clk 0:00:10.5]} 48... Be7 {[%clk 0:00:11.4]}
49. Be1 {[%clk 0:00:09.5]} 49... Bf6 {[%clk 0:00:10.8]} 50. Bd2 {[%clk
0:00:09.9]} 50... Bg7 {[%clk 0:00:10.1]} 51. Be3 {[%clk 0:00:10]} 51... Bf6
{[%clk 0:00:10.3]} 52. Bg1 {[%clk 0:00:10.5]} 52... Bd4 {[%clk 0:00:05.2]} 53.
Bh2 {[%clk 0:00:06.7]} 53... Bc3 {[%clk 0:00:05.6]} 54. Bg3 {[%clk 0:00:06.3]}
54... Bf6 {[%clk 0:00:05]} 55. Be1 {[%clk 0:00:06.3]} 55... Bd4 {[%clk
0:00:05.2]} 56. Bh4 {[%clk 0:00:06.2]} 56... Bf6 {[%clk 0:00:04.7]} 57. Bxf6
{[%clk 0:00:06.7]} 57... Kxf6 {[%clk 0:00:05.6]} 58. Kg4 {[%clk 0:00:07.6]}
58... Kf7 {[%clk 0:00:05.5]} 59. Kh4 {[%clk 0:00:05]} 59... Kf6 {[%clk
0:00:05.4]} 60. Kg4 {[%clk 0:00:05.6]} 60... Kf7 {[%clk 0:00:05.8]} 61. Kg5
{[%clk 0:00:05.6]} 61... Kg7 {[%clk 0:00:06.1]} 62. f5 {[%clk 0:00:03.4]} 62...
gxf5 {[%clk 0:00:06.5]} 63. Kxf5 {[%clk 0:00:04.2]} 63... Kf7 {[%clk 0:00:06.8]}
64. Kg5 {[%clk 0:00:05.1]} 64... Kg7 {[%clk 0:00:07.2]} 65. Kf5 {[%clk
0:00:04.8]} 65... Kf7 {[%clk 0:00:07.7]} 66. Kg5 {[%clk 0:00:04.6]} 66... Kg7
{[%clk 0:00:08.1]} 67. Kf5 {[%clk 0:00:05.5]} 1/2-1/2

[Event "*** Titled Tuesday Blitz"]
[Site "Chess.com"]
[Date "2020.04.28"]
[Round "6"]
[White "Akhayan"]
[Black "FMOlexandrProhorov"]
[Result "1/2-1/2"]
[WhiteElo "2293"]
[BlackElo "2079"]
[TimeControl "180+1"]
[EndTime "11:08:46 PDT"]
[Termination "Game drawn by agreement"]

1. d4 {[%clk 0:03:00.9]} 1... g6 {[%clk 0:02:58.7]} 2. Nf3 {[%clk 0:03:01]} 2...
Bg7 {[%clk 0:02:58.8]} 3. g3 {[%clk 0:03:01.2]} 3... c5 {[%clk 0:02:58.3]} 4.
Bg2 {[%clk 0:03:00.1]} 4... cxd4 {[%clk 0:02:57.9]} 5. Nxd4 {[%clk 0:03:00]}
5... Nc6 {[%clk 0:02:58.8]} 6. Nxc6 {[%clk 0:02:57]} 6... bxc6 {[%clk
0:02:58.6]} 7. O-O {[%clk 0:02:56.5]} 7... Rb8 {[%clk 0:02:58.4]} 8. Nc3 {[%clk
0:02:47.2]} 8... Nf6 {[%clk 0:02:57.7]} 9. Qd3 {[%clk 0:02:25.6]} 9... O-O
{[%clk 0:02:56.9]} 10. e4 {[%clk 0:02:23.8]} 10... d6 {[%clk 0:02:56.4]} 11. e5
{[%clk 0:02:16.5]} 11... dxe5 {[%clk 0:02:51.2]} 12. Qxd8 {[%clk 0:02:15.5]}
12... Rxd8 {[%clk 0:02:50.9]} 13. Bxc6 {[%clk 0:02:16]} 13... Bf5 {[%clk
0:02:50.5]} 14. Ba4 {[%clk 0:02:11.2]} 14... e4 {[%clk 0:02:32.6]} 15. Bb3
{[%clk 0:02:10]} 15... Ng4 {[%clk 0:02:30.1]} 16. Bf4 {[%clk 0:02:00.5]} 16...
e5 {[%clk 0:02:28.5]} 17. Bg5 {[%clk 0:01:58.8]} 17... Rdc8 {[%clk 0:02:23.8]}
18. Nd5 {[%clk 0:01:57.1]} 18... Rc5 {[%clk 0:02:15.3]} 19. Ne7+ {[%clk
0:01:55.1]} 19... Kf8 {[%clk 0:02:15.5]} 20. Nxf5 {[%clk 0:01:53.8]} 20... gxf5
{[%clk 0:02:16.4]} 21. h3 {[%clk 0:01:52.7]} 21... Nf6 {[%clk 0:02:13.2]} 22.
Be3 {[%clk 0:01:51.5]} 22... Rc7 {[%clk 0:02:11.9]} 23. Rfd1 {[%clk 0:01:45.5]}
23... Nh5 {[%clk 0:02:11.2]} 24. Rd5 {[%clk 0:01:37.5]} 24... f4 {[%clk
0:02:08.8]} 25. Bc5+ {[%clk 0:01:36]} 25... Kg8 {[%clk 0:02:07.9]} 26. Bd6
{[%clk 0:01:36.2]} 26... Rbc8 {[%clk 0:02:05.1]} 27. Bxc7 {[%clk 0:01:36.1]}
27... Rxc7 {[%clk 0:02:04.7]} 28. g4 {[%clk 0:01:34.2]} 28... Nf6 {[%clk
0:02:04.7]} 29. Rd8+ {[%clk 0:01:34.1]} 29... Bf8 {[%clk 0:02:04.8]} 30. Rad1
{[%clk 0:01:31.9]} 30... h6 {[%clk 0:02:02.8]} 31. Ra8 {[%clk 0:01:10.6]} 31...
Kg7 {[%clk 0:02:00.5]} 32. Rdd8 {[%clk 0:01:10]} 32... Be7 {[%clk 0:01:40.4]}
33. Rdc8 {[%clk 0:01:08]} 33... Rd7 {[%clk 0:01:39.7]} 34. h4 {[%clk 0:01:03.1]}
34... e3 {[%clk 0:01:29.7]} 35. fxe3 {[%clk 0:01:00.3]} 35... Nxg4 {[%clk
0:01:29.7]} 36. Rg8+ {[%clk 0:00:57.9]} 36... Kf6 {[%clk 0:01:26.1]} 37. Rxg4
{[%clk 0:00:56.8]} 37... Bc5 {[%clk 0:01:23.7]} 38. Kg2 {[%clk 0:00:45.1]} 38...
fxe3 {[%clk 0:01:20.3]} 39. Re4 {[%clk 0:00:43.4]} 39... Rd2+ {[%clk 0:01:19.2]}
40. Kf3 {[%clk 0:00:41.6]} 40... Rf2+ {[%clk 0:01:17.7]} 41. Kg3 {[%clk
0:00:41.5]} 41... Kf5 {[%clk 0:01:15]} 42. Bd5 {[%clk 0:00:38.9]} 42... Rf1
{[%clk 0:01:11.6]} 43. Rc8 {[%clk 0:00:37.5]} 43... Bb6 {[%clk 0:01:10.5]} 44.
Rf8 {[%clk 0:00:36.1]} 44... f6 {[%clk 0:01:09.9]} 45. c4 {[%clk 0:00:34]} 45...
Rg1+ {[%clk 0:01:04.6]} 46. Kh2 {[%clk 0:00:33.3]} 46... Rb1 {[%clk 0:01:02.4]}
47. b3 {[%clk 0:00:32.4]} 47... Rb2+ {[%clk 0:01:02]} 48. Kh3 {[%clk 0:00:32.7]}
48... e2 {[%clk 0:01:01.5]} 49. b4 {[%clk 0:00:27.5]} 49... Bf2 {[%clk
0:00:44.2]} 50. c5 {[%clk 0:00:23.6]} 50... e1=Q {[%clk 0:00:41.9]} 51. Rxe1
{[%clk 0:00:23.2]} 51... Bxe1 {[%clk 0:00:42]} 52. c6 {[%clk 0:00:23.1]} 52...
Rxb4 {[%clk 0:00:40.3]} 53. c7 {[%clk 0:00:22.5]} 53... Rxh4+ {[%clk 0:00:37.1]}
54. Kg2 {[%clk 0:00:22.6]} 54... Rd4 {[%clk 0:00:34.8]} 55. c8=Q+ {[%clk
0:00:21.2]} 55... Kf4 {[%clk 0:00:34.1]} 56. Bc4 {[%clk 0:00:16.5]} 56... Rd2+
{[%clk 0:00:33.8]} 57. Kf1 {[%clk 0:00:16.6]} 57... Bg3 {[%clk 0:00:33.9]} 58.
Rxf6+ {[%clk 0:00:15]} 58... Ke3 {[%clk 0:00:33.8]} 59. Qc5+ {[%clk 0:00:14]}
59... Rd4 {[%clk 0:00:34]} 60. Rg6 {[%clk 0:00:12.1]} 60... Bf4 {[%clk
0:00:32.2]} 61. Rg4 {[%clk 0:00:11.8]} 61... h5 {[%clk 0:00:31.7]} 62. Rxf4
{[%clk 0:00:11.8]} 62... Kxf4 {[%clk 0:00:31.7]} 63. Qf8+ {[%clk 0:00:10.6]}
63... Ke3 {[%clk 0:00:31.5]} 64. Bb3 {[%clk 0:00:11.1]} 64... Rf4+ {[%clk
0:00:31.1]} 65. Qxf4+ {[%clk 0:00:10.4]} 65... exf4 {[%clk 0:00:31.2]} 66. Bd5
{[%clk 0:00:10.8]} 66... f3 {[%clk 0:00:30.6]} 67. Kg1 {[%clk 0:00:11]} 67... h4
{[%clk 0:00:30.8]} 68. Kf1 {[%clk 0:00:10.9]} 68... a5 {[%clk 0:00:30]} 69. a4
{[%clk 0:00:10.1]} 69... h3 {[%clk 0:00:27.9]} 70. Kg1 {[%clk 0:00:08.5]} 70...
f2+ {[%clk 0:00:20.6]} 71. Kf1 {[%clk 0:00:07.3]} 71... h2 {[%clk 0:00:20.7]}
72. Bc6 {[%clk 0:00:06.2]} 72... Kd4 {[%clk 0:00:10.8]} 73. Kxf2 {[%clk
0:00:06.3]} 73... Kc5 {[%clk 0:00:10.6]} 74. Bf3 {[%clk 0:00:05]} 74... Kb4
{[%clk 0:00:09.7]} 75. Kg2 {[%clk 0:00:05.4]} 75... Kxa4 {[%clk 0:00:09.1]} 76.
Kxh2 {[%clk 0:00:05.8]} 76... Kb3 {[%clk 0:00:09.4]} 77. Bd5+ {[%clk 0:00:06.1]}
1/2-1/2